{"text_format":"3","workbook":"xlsx","n_sheets":2,"sheets":["中匠","汇总表（不需要填写）（不要删除）"],"read":"whole","date_system":"1900"}

{"sheet":"中匠","index":0,"n_rows":16,"n_cols":6,"rows_kept":16,"merged":[[0,0,0,5],[1,1,1,5],[6,1,6,3],[7,1,7,5],[11,1,11,5],[12,1,12,5],[13,0,13,2],[13,3,13,5],[14,0,14,2],[14,3,14,5],[15,0,15,5]]}
["“中匠杯”工艺美术作品大赛参赛报名表\n（承诺书）"]
["展位号","一楼A001或二楼B001"]
["作者类别\n（点击选项）",null,"作者所在省市\n（点击选项）",null,"作者所在区县","市、区（县）"]
["作者一","单位名称或个人姓名","作者证件号码","组织机构代码或作者身份证号","作者工作单位","单位报名不填写"]
["作者二","单位名称或个人姓名","作者证件号码","组织机构代码或作者身份证号","作者工作单位","单位报名不填写"]
["作者三","单位名称或个人姓名","作者证件号码","组织机构代码或作者身份证号","作者工作单位","单位报名不填写"]
["通讯地址",{"$nulls":3},"联系方式"]
["参赛单位或\n个人简介","如：单位简介、个人基本情况、职务职称、曾获荣誉、奖项等（150字以内）"]
["作品类别\n（点击选项）",null,"作品赛道\n（点击选项）",null,"作品工艺品类\n（点击选项）"]
["作品名称","《   》","作品尺寸\n（cm)","长(cm)×宽(cm)×高(cm)","重量\n（Kg）","KG"]
["作品材质",null,"作品工艺手法",null,"作品创作时间","示例：20220206"]
["参赛作品\n简介","简要介绍作品的创意主题、创作思路、作品寓意等有关情况……（300字以内）"]
["承诺书","1.本单位/本团队/本人自愿报名参加“中匠杯”工艺美术作品大赛，对报名参赛作品享有所有权、著作权，若有剽窃、侵权等行为，自愿承担由此带来的一切责任和后果。\n2.若本件参赛作品在此次大赛中获奖，大赛主办方享有该件作品的展览权、宣传权。\n3.本单位/本团队/本人同意并遵守本次大赛参赛规则、评分细则的各项规定，若违反上述规定，自愿承担由此带来的一切责任和后果。"]
["作品照片（务必填写，否则申报无效）",null,null,"参赛单位/团队/参赛个人（盖章/签字）"]
[{"$nulls":3},"\n\n\n\n\n\n                     年   月   日"]
["填表说明：\n1.填表时，一件作品填写1张报名表（承诺书）；汇总表不需要填写，自动生成，不得删除。为了便于复制汇总、统计等，请不要增加减少表格内容，不要更改表格格式；\n2.本表蓝色字体为填表说明，填表时请删除蓝色字体后填写，并改为黑色字体；\n3.本表填写完成，需打印盖章或签字，再进行拍照或扫描，并将此表照片或扫描件和报名表电子版以及作品照片一并发送邮箱。\n4.联系方式：孟老师 010-68396405 参赛邮箱：zjbds2025@126.com"]

{"sheet":"汇总表（不需要填写）（不要删除）","index":1,"n_rows":4,"n_cols":28,"rows_kept":4,"merged":[[0,0,0,27],[1,5,1,7],[1,8,1,10],[1,11,1,13]]}
["“中匠杯”工艺美术作品大赛参赛报名表\n（汇总）"]
[{"$nulls":5},"作者一",null,null,"作者二",null,null,"作者三"]
["序号","展位号","作者类别\n（点击选项）","作者所在省市\n（点击选项）","作者所在区县","作者一","作者证件号码","作者工作单位","作者二","作者证件号码","作者工作单位","作者三","作者证件号码","作者工作单位","通讯地址","联系方式","参赛单位或\n个人简介","作品类别\n（点击选项）","作品赛道\n（点击选项）","作品工艺品类\n（点击选项）","作品名称","作品尺寸\n（cm)","重量\n（Kg）","作品材质","作品工艺手法","作品创作时间","参赛作品简介","作品照片（务必填写，否则申报无效）"]
[null,{"$f":"中匠!B2","v":"一楼A001或二楼B001"},{"$f":"中匠!B3","v":0},{"$f":"中匠!D3","v":0},{"$f":"中匠!F3","v":"市、区（县）"},{"$f":"中匠!B4","v":"单位名称或个人姓名"},{"$f":"中匠!D4","v":"组织机构代码或作者身份证号"},{"$f":"中匠!F4","v":"单位报名不填写"},{"$f":"中匠!B5","v":"单位名称或个人姓名"},{"$f":"中匠!D5","v":"组织机构代码或作者身份证号"},{"$f":"中匠!F5","v":"单位报名不填写"},{"$f":"中匠!B6","v":"单位名称或个人姓名"},{"$f":"中匠!D6","v":"组织机构代码或作者身份证号"},{"$f":"中匠!F6","v":"单位报名不填写"},{"$f":"中匠!B7","v":0},{"$f":"中匠!F7","v":0},{"$f":"中匠!B8","v":"如：单位简介、个人基本情况、职务职称、曾获荣誉、奖项等（150字以内）"},{"$f":"中匠!B9","v":0},{"$f":"中匠!D9","v":0},{"$f":"中匠!F9","v":0},{"$f":"中匠!B10","v":"《   》"},{"$f":"中匠!D10","v":"长(cm)×宽(cm)×高(cm)"},{"$f":"中匠!F10","v":"KG"},{"$f":"中匠!B11","v":0},{"$f":"中匠!D11","v":0},{"$f":"中匠!F11","v":"示例：20220206"},{"$f":"中匠!B12","v":"简要介绍作品的创意主题、创作思路、作品寓意等有关情况……（300字以内）"},{"$f":"中匠!A15","v":0}]